bitfinex-derivatives/quotes_BNBF0:USTF0_20250406
["timestamp","ask_amount","ask_price","bid_price","bid_amount"]
[1743918341389,0.29377625,592.65,591.85,1.26833324]
[1743918341583,0.29377625,592.65,591.86,0.28645155]
[1743918341782,0.565,592.66,591.86,0.28645155]
[1743918342591,0.565,592.66,591.86,1.55478479]
[1743918342789,0.565,592.66,591.87,0.28645155]
[1743918342988,0.29377749,592.65,591.87,0.28645155]
[1743918344588,0.413,592.68,591.87,0.28645155]
[1743918345286,0.413,592.68,591.86,1.26833324]
[1743918345592,0.413,592.68,591.87,0.28645097]
[1743918345892,0.29373162,592.67,591.87,0.28645097]
[1743918346291,0.666,592.66,591.86,1.26833324]
[1743918346493,0.666,592.66,591.87,0.28645485]
[1743918347190,0.666,592.66,591.88,0.28645485]
[1743918347394,0.666,592.66,591.89,0.28645485]
[1743918347592,0.666,592.66,591.85,0.28645485]
[1743918347796,0.666,592.66,591.86,0.28645485]
[1743918347998,0.29378121,592.65,591.87,0.28645485]
[1743918348191,0.29378121,592.65,591.85,0.28645485]
[1743918348394,0.29378121,592.65,591.86,0.28645485]
[1743918348595,0.29378121,592.65,591.85,0.28645485]
[1743918349699,0.29378121,592.65,591.86,1.26833324]
[1743918349897,0.29378121,592.65,591.87,0.28645485]
[1743918350393,0.29378121,592.65,591.88,0.28643576]
[1743918350597,0.666,592.66,591.88,0.28643576]
[1743918350797,0.29377873,592.64,591.89,0.28643879]
[1743918350997,0.29377873,592.64,591.87,0.28643879]
[1743918351900,0.683,592.63,591.87,0.28643879]
[1743918352097,0.683,592.63,591.88,0.28643879]
[1743918352296,0.683,592.63,591.85,0.28643879]
[1743918352493,0.683,592.63,591.86,0.28643879]
[1743918352798,0.683,592.63,591.87,0.28643879]
[1743918353100,0.683,592.63,591.85,0.28643879]
[1743918353295,0.683,592.63,591.86,0.28643879]
[1743918353500,0.683,592.63,591.87,0.28643879]
[1743918353700,0.683,592.63,591.85,0.28643879]
[1743918354000,0.29378493,592.62,591.86,0.28643879]
[1743918354199,0.29378493,592.62,591.85,0.28643879]
[1743918354400,0.29378493,592.62,591.86,0.28643879]
[1743918354602,0.29378493,592.62,591.84,1.26833324]
[1743918354899,0.29378493,592.62,591.85,0.28645715]
[1743918355896,0.29378493,592.62,591.84,1.26833324]
[1743918356095,0.29378493,592.62,591.85,0.28645604]
[1743918356800,0.683,592.63,591.85,0.28645604]
[1743918357897,0.29378493,592.62,591.84,1.26833324]
[1743918358101,0.29378493,592.62,591.85,0.28645809]
[1743918359402,0.29378493,592.62,591.84,0.28645809]
[1743918359601,0.683,592.63,591.84,0.28645809]
[1743918360998,0.29378617,592.62,591.83,1.26833324]
[1743918361201,0.29378617,592.62,591.84,0.2864536]
[1743918361906,0.29378617,592.62,591.85,1.26833324]
[1743918362104,0.29378617,592.62,591.86,0.2864536]
[1743918364006,0.29378617,592.62,591.85,1.26833324]
[1743918364204,0.29378617,592.62,591.86,0.28645729]
[1743918364408,0.29378617,592.62,591.8,0.28645729]
[1743918364606,0.29378617,592.62,591.81,0.28645729]
[1743918364808,0.29378617,592.62,591.8,0.28645729]
[1743918365609,0.666,592.66,591.8,0.28645729]
[1743918366111,0.29378741,592.61,591.8,0.28645729]
[1743918366615,0.29378741,592.61,591.79,0.28645729]
[1743918367116,0.547,592.6,591.79,0.28645729]
[1743918367315,0.547,592.6,591.78,1.26833324]
[1743918367517,0.547,592.6,591.79,0.2864752]
[1743918369017,0.547,592.6,591.78,0.2864752]
[1743918369214,0.547,592.6,591.8,0.2864752]
[1743918369412,0.547,592.6,591.81,0.2864752]
[1743918369614,0.547,592.6,591.78,0.2864752]
[1743918369812,0.547,592.6,591.79,0.2864752]
[1743918370017,0.29379733,592.59,591.78,0.2864752]
[1743918370217,0.29379733,592.59,591.79,0.2864752]
[1743918370418,0.29379733,592.59,591.8,0.2864752]
[1743918370618,0.29379733,592.59,591.81,0.2864752]
[1743918370816,0.29379733,592.59,591.78,0.2864752]
[1743918371017,0.29379733,592.59,591.79,0.2864752]
[1743918371217,0.29379733,592.59,591.78,0.2864752]
[1743918371415,0.29379733,592.59,591.79,0.2864752]
[1743918371716,0.547,592.6,591.8,0.2864752]
[1743918371919,0.547,592.6,591.78,0.2864752]
[1743918372221,0.547,592.6,591.77,1.26833324]
[1743918372415,0.547,592.6,591.78,0.28655053]
[1743918373019,0.29380229,592.59,591.69,0.28655053]
[1743918373220,0.29380229,592.59,591.7,0.28655053]
[1743918373516,0.29380229,592.59,591.71,0.28655053]
[1743918373723,0.29380229,592.59,591.68,0.33802055]
[1743918374015,0.29380229,592.59,591.69,0.28654956]
[1743918374621,0.547,592.6,591.69,0.28654956]
[1743918375924,0.29374525,592.59,591.69,0.28654956]
[1743918377625,0.547,592.6,591.69,0.28654956]
[1743918377926,0.52,592.59,591.69,0.28654956]
[1743918378126,0.81374153,592.59,591.76,1.26833324]
[1743918378325,0.81374153,592.59,591.77,0.28654956]
[1743918378724,0.81374153,592.59,591.76,1.26833324]
[1743918379022,0.81374153,592.59,591.77,0.28659875]
[1743918380829,0.52,592.59,591.77,0.28659875]
[1743918381028,0.29381221,592.58,591.77,0.28659875]
[1743918382029,0.29381221,592.58,591.76,1.26833324]
[1743918382227,0.29381221,592.58,591.77,0.28657084]
[1743918383628,0.52,592.59,591.77,0.28657084]
[1743918383832,0.52,592.59,591.78,0.2865496]
[1743918384032,0.52,592.59,591.77,0.2865496]
[1743918384333,0.52,592.59,591.78,0.2865496]
[1743918384527,0.52,592.59,591.77,0.2865496]
[1743918384728,0.52,592.59,591.78,0.2865496]
[1743918385028,0.52,592.59,591.79,0.2865496]
[1743918385232,0.52,592.59,591.8,0.2865496]
[1743918385432,0.52,592.59,591.78,1.26833324]
[1743918385629,0.52,592.59,591.79,0.28658173]
[1743918387130,0.52,592.59,591.78,1.26833324]
[1743918387333,0.52,592.59,591.79,0.28658671]
[1743918388636,0.52,592.59,591.78,1.26833324]
[1743918388829,0.52,592.59,591.79,0.28658927]
[1743918389934,0.52,592.59,591.77,0.28658927]
[1743918390133,0.52,592.59,591.76,1.26833324]
[1743918390134,0.52,592.59,591.78,0.28658927]
[1743918390333,0.52,592.59,591.77,0.28658927]
[1743918390532,0.52,592.59,591.78,0.28658674]
[1743918390735,0.52,592.59,591.77,0.28658674]
[1743918390931,0.52,592.59,591.78,0.28658674]
[1743918391235,0.52,592.59,591.79,0.28658674]
[1743918391436,0.52,592.59,591.77,0.28658674]
[1743918391736,0.52,592.59,591.78,0.28658674]
[1743918392035,0.52,592.59,591.74,1.26833324]
[1743918392236,0.52,592.59,591.75,0.28659066]
[1743918393931,0.52,592.59,591.75,1.5549239]
[1743918394236,0.52,592.59,591.76,0.28659066]
[1743918395331,0.52,592.59,591.75,1.26833324]
[1743918395537,0.52,592.59,591.76,0.2865808]
[1743918396937,0.52,592.59,591.75,1.26833324]
[1743918397236,0.52,592.59,591.68,0.33802055]
[1743918397237,0.52,592.59,591.76,0.28658143]
[1743918397436,0.52,592.59,591.71,0.28658143]
[1743918397637,0.52,592.59,591.72,0.28658143]
[1743918397936,0.52,592.59,591.73,0.28658143]
[1743918398137,0.52,592.59,591.71,0.28658143]
[1743918398534,0.52,592.59,591.7,1.26833324]
[1743918398737,0.52,592.59,591.71,0.2865797]
[1743918399237,0.52,592.59,591.7,1.26833324]
[1743918399532,0.52,592.59,591.68,0.33802055]
[1743918399533,0.52,592.59,591.71,0.28657949]
[1743918399737,0.52,592.59,591.68,0.33802055]
[1743918399935,0.52,592.59,591.69,0.28658073]
[1743918400938,0.84080849,592.6,591.69,0.28658073]
[1743918401736,0.547,592.6,591.69,0.28658073]
[1743918401933,0.547,592.6,591.68,1.60635379]
[1743918402138,0.547,592.6,591.69,0.2865775]
[1743918402939,0.84072914,592.6,591.69,0.2865775]
[1743918404039,0.715,592.59,591.69,0.2865775]
[1743918406236,0.715,592.59,591.74,1.26833324]
[1743918406437,0.715,592.59,591.75,0.2865775]
[1743918406837,0.715,592.59,591.74,1.26833324]
[1743918407036,0.715,592.59,591.75,0.28661557]
[1743918408141,0.715,592.59,591.78,1.26833324]
[1743918408341,0.715,592.59,591.79,0.28661557]
[1743918410238,0.715,592.59,591.78,1.26833324]
[1743918410439,0.715,592.59,591.79,0.2866659]
[1743918413350,0.715,592.59,591.76,1.26833324]
[1743918413541,0.715,592.59,591.8,0.28666546]
[1743918413745,0.715,592.59,591.81,0.28666546]
[1743918413943,0.715,592.59,591.77,0.28666546]
[1743918414143,0.715,592.59,591.78,0.28666546]
[1743918414441,0.715,592.59,591.79,0.28666546]
[1743918414748,0.715,592.59,591.77,0.28666546]
[1743918415048,0.549,592.58,591.78,0.28666546]
[1743918415243,0.549,592.58,591.77,0.28666546]
[1743918415448,0.549,592.58,591.78,0.28666546]
[1743918415647,0.549,592.58,591.77,0.28666546]
[1743918415948,0.549,592.58,591.78,1.5549987]
[1743918416243,0.549,592.58,591.79,0.28666546]
[1743918418344,0.549,592.58,591.71,1.26833324]
[1743918418545,0.549,592.58,591.72,0.28665336]
[1743918421255,0.549,592.58,591.69,1.26833324]
[1743918421453,0.549,592.58,591.7,0.28666064]
[1743918422751,0.549,592.58,591.69,1.26833324]
[1743918422950,0.549,592.58,591.7,0.28667342]
[1743918423155,0.549,592.58,591.71,1.26833324]
[1743918423455,0.549,592.58,591.72,0.28667342]
[1743918424755,0.549,592.58,591.82,1.26833324]
[1743918424954,0.549,592.58,591.83,0.28667342]
[1743918426157,0.549,592.58,591.84,0.28667158]
[1743918426454,0.549,592.58,591.83,0.28667158]
[1743918426655,0.549,592.58,591.85,1.26833324]
[1743918426954,0.549,592.58,591.86,0.28667158]
[1743918427559,0.549,592.58,591.85,1.26833324]
[1743918427755,0.549,592.58,591.86,0.28673482]
[1743918430659,0.549,592.58,591.85,1.26833324]
[1743918431052,0.549,592.58,591.86,1.55499475]
[1743918431257,0.549,592.58,591.87,0.28666151]
[1743918433360,0.549,592.58,591.88,0.28666151]
[1743918433659,0.549,592.58,591.89,0.28666151]
[1743918433855,1.15,592.58,591.79,0.28666151]
[1743918434159,1.15,592.58,591.8,0.28666151]
[1743918434355,1.15,592.58,591.78,1.26833324]
[1743918434356,1.15,592.58,591.81,0.28651722]
[1743918434562,1.15,592.58,591.79,0.28651722]
[1743918434762,1.15,592.58,591.8,0.28651722]
[1743918434959,1.15,592.58,591.79,0.28651722]
[1743918435164,1.15,592.58,591.8,0.28651722]
[1743918435362,1.15,592.58,591.79,0.28651722]
[1743918435558,1.15,592.58,591.8,0.28651722]
[1743918435763,1.15,592.58,591.79,0.28651722]
[1743918435963,1.15,592.58,591.8,0.28651722]
[1743918436162,1.15,592.58,591.81,0.28651722]
[1743918436358,1.15,592.58,591.78,0.28651722]
[1743918436562,1.15,592.58,591.79,0.28651722]
[1743918436760,1.15,592.58,591.78,0.28651722]
[1743918436965,1.15,592.58,591.79,0.28651722]
[1743918437266,1.15,592.58,591.8,0.28651722]
[1743918437567,1.15,592.58,591.81,0.28641606]
[1743918437765,1.15,592.58,591.78,0.28641606]
[1743918438361,1.15,592.58,591.84,1.26833324]
[1743918438661,1.15,592.58,591.85,0.28641606]
[1743918440966,1.15,592.58,591.86,0.28638376]
[1743918441266,1.15,592.58,591.85,0.28638376]
[1743918441467,1.15,592.58,591.86,0.28638376]
[1743918441668,1.15,592.58,591.85,0.28638376]
[1743918441868,1.15,592.58,591.86,0.28638376]
[1743918442167,1.15,592.58,591.79,0.28638376]
[1743918442366,1.15,592.58,591.78,1.26833324]
[1743918442568,1.15,592.58,591.79,0.28637723]
[1743918446471,1.15,592.58,591.78,0.28637723]
[1743918446771,1.15,592.58,591.79,0.28637723]
[1743918446970,1.15,592.58,591.77,0.29373038]
[1743918447170,1.15,592.58,591.78,0.28637723]
[1743918447370,1.15,592.58,591.77,0.29373038]
[1743918447566,1.15,592.58,591.78,0.62434539]
[1743918447765,1.15,592.58,591.79,0.33795772]
[1743918448366,1.15,592.58,591.8,0.28638284]
[1743918448670,1.15,592.58,591.81,0.3379463]
[1743918448871,1.15,592.58,591.82,0.28638284]
[1743918449071,1.15,592.58,591.83,0.33793487]
[1743918449267,1.15,592.58,591.84,0.286385]
[1743918449471,1.15,592.58,591.85,0.33792346]
[1743918449668,1.15,592.58,591.86,0.286385]
[1743918449867,1.15,592.58,591.87,0.33791204]
[1743918450073,1.15,592.58,591.88,0.286385]
[1743918450269,1.15,592.58,591.89,0.33790062]
[1743918450470,1.15,592.58,591.9,0.286385]
[1743918450670,1.15,592.58,591.91,0.3378892]
[1743918450870,1.15,592.58,591.92,0.286385]
[1743918451072,1.15,592.58,591.93,0.33787778]
[1743918451274,1.15,592.58,591.94,0.286385]
[1743918451476,1.15,592.58,591.94,0.62425708]
[1743918451669,1.15,592.58,591.95,0.286385]
[1743918453978,1.15,592.58,591.94,0.33787208]
[1743918454278,1.15,592.58,591.95,0.28642013]
[1743918460690,1.15,592.58,591.94,0.33787208]
[1743918460890,1.15,592.58,591.95,0.28641341]
[1743918462287,1.15,592.58,591.94,0.33787208]
[1743918462488,1.15,592.58,591.96,0.28641489]
[1743918462687,1.15,592.58,591.97,0.28641489]
[1743918462882,1.15,592.58,591.95,0.28641489]
[1743918463086,1.15,592.58,591.96,0.28641642]
[1743918463287,1.15,592.58,591.95,0.28641642]
[1743918463490,1.15,592.58,591.97,0.28641642]
[1743918463687,1.15,592.58,591.94,0.33787208]
[1743918463688,1.15,592.58,591.98,0.28641642]
[1743918463882,1.15,592.58,591.99,0.28641642]
[1743918464083,1.15,592.58,591.94,0.33787208]
[1743918464286,1.15,592.58,591.95,0.28638368]
[1743918465689,1.15,592.58,591.94,0.33787208]
[1743918465888,1.15,592.58,591.95,0.28637184]
[1743918466988,1.15,592.58,591.97,1.26833324]
[1743918467189,1.15,592.58,591.98,0.28637184]
[1743918467389,1.15,592.58,591.97,1.26833324]
[1743918467588,1.15,592.58,591.99,0.28637025]
[1743918467783,1.15,592.58,591.98,0.28637025]
[1743918467983,1.15,592.58,591.99,0.28637025]
[1743918468187,1.15,592.58,591.98,0.28637025]
[1743918468388,1.15,592.58,592.0,0.28637025]
[1743918468684,1.15,592.58,592.01,0.28637025]
[1743918468892,1.15,592.58,591.98,0.28637025]
[1743918469190,1.15,592.58,591.97,1.26833324]
[1743918469392,1.15,592.58,591.98,0.28633631]
[1743918470293,1.15,592.58,591.99,1.26833324]
[1743918470592,1.15,592.58,592.0,0.28633631]
[1743918473088,1.15,592.58,592.01,1.26833324]
[1743918473293,1.15,592.58,592.02,0.28633631]
[1743918474794,1.15,592.58,592.02,1.55466955]
[1743918474986,1.15,592.58,592.03,0.28633631]
[1743918477598,1.15,592.58,592.04,0.28633631]
[1743918477799,1.15,592.58,591.95,0.28633631]
[1743918478001,1.15,592.58,591.96,0.62419697]
[1743918478201,1.15,592.58,591.97,0.62419126]
[1743918478396,1.15,592.58,591.98,0.62418556]
[1743918478597,1.15,592.58,591.99,0.62417985]
[1743918478803,1.15,592.58,592.0,0.28633631]
[1743918482001,1.15,592.58,591.99,0.33784354]
[1743918482202,1.15,592.58,592.01,0.2862836]
[1743918482402,1.15,592.58,592.0,0.2862836]
[1743918482602,1.15,592.58,592.01,0.2862836]
[1743918482801,1.15,592.58,592.0,0.2862836]
[1743918488906,1.15,592.58,591.99,0.33784354]
[1743918489103,1.15,592.58,592.0,0.28636235]
[1743918490009,1.15,592.58,592.05,1.26833324]
[1743918490206,1.15,592.58,592.06,0.28636235]
[1743918491909,1.15,592.58,592.07,0.28636235]
[1743918492207,1.15,592.58,592.08,0.28636235]
[1743918492408,1.15,592.58,592.03,0.28636235]
[1743918494010,1.15,592.58,592.02,1.26833324]
[1743918494203,1.15,592.58,592.03,0.28640506]
[1743918494407,1.15,592.58,592.02,1.26833324]
[1743918494609,1.15,592.58,592.03,0.28640515]
[1743918494811,1.15,592.58,592.0,0.28640515]
[1743918497514,1.15,592.58,592.0,1.55473839]
[1743918497814,1.15,592.58,592.01,0.28640515]
[1743918500017,1.15,592.58,592.0,0.28640515]
[1743918500915,1.15,592.58,592.01,0.28651001]
[1743918501112,1.15,592.58,592.0,0.28651001]
[1743918501513,1.15,592.58,592.0,1.55484325]
[1743918501712,1.15,592.58,592.01,0.28651001]
[1743918502411,1.15,592.58,592.0,1.26833324]
[1743918502617,1.15,592.58,592.01,0.28651322]
[1743918504317,1.15,592.58,592.0,1.26833324]
[1743918504621,1.15,592.58,592.01,0.286486]
[1743918505923,1.15,592.58,592.03,1.26833324]
[1743918506320,1.15,592.58,592.04,0.28647656]
[1743918507722,1.15,592.58,592.03,1.26833324]
[1743918507924,1.15,592.58,592.08,1.26833324]
[1743918508123,1.15,592.58,592.09,0.28647748]
[1743918510426,1.15,592.58,592.05,0.28647748]
[1743918514322,1.15,592.58,592.03,0.28647748]
[1743918514827,1.15,592.58,592.02,1.26833324]
[1743918515025,1.15,592.58,592.03,0.286492]
[1743918516429,1.15,592.58,592.02,1.26833324]
[1743918516728,1.15,592.58,592.03,0.28648173]
[1743918516926,1.15,592.58,592.06,1.26833324]
[1743918517230,1.15,592.58,592.07,0.28648173]
[1743918518930,1.15,592.58,592.06,1.26833324]
[1743918519126,1.15,592.58,592.07,0.28648105]
[1743918519630,1.15,592.58,592.11,1.26833324]
[1743918519827,1.15,592.58,592.12,0.28648105]
[1743918522934,1.15,592.58,592.07,0.28648105]
[1743918523131,1.15,592.58,592.08,0.28648105]
[1743918523331,1.15,592.58,592.06,1.26833324]
[1743918523531,1.15,592.58,592.07,0.2865145]
[1743918525235,1.15,592.58,592.08,0.28651551]
[1743918525431,1.15,592.58,592.07,0.28651551]
[1743918525834,1.15,592.58,592.03,0.28651551]
[1743918531951,1.15,592.58,592.02,1.26833324]
[1743918532147,1.15,592.58,592.03,0.28650069]
[1743918532348,1.15,592.58,592.05,1.26833324]
[1743918532546,1.15,592.58,592.06,0.28650069]
[1743918535350,1.15,592.58,592.05,1.26833324]
[1743918535550,1.15,592.58,592.06,0.28652492]
[1743918536854,1.15,592.58,592.04,0.28652492]
[1743918539354,1.15,592.58,592.03,1.26833324]
[1743918539557,1.15,592.58,592.05,0.28653644]
[1743918539758,1.15,592.58,592.06,0.28653644]
[1743918540058,1.15,592.58,592.07,0.28653644]
[1743918540257,1.15,592.58,592.01,0.28653644]
[1743918540458,1.15,592.58,592.0,1.26833324]
[1743918540659,1.15,592.58,592.01,0.28655817]
[1743918542061,1.15,592.58,592.0,0.28655817]
[1743918543161,1.15,592.58,591.99,0.33784354]
[1743918543361,1.15,592.58,592.0,0.28652126]
[1743918546667,1.15,592.58,591.99,0.33784354]
[1743918546966,1.15,592.58,592.0,0.28652396]
[1743918548966,1.15,592.58,591.99,0.33784354]
[1743918549164,1.15,592.58,592.0,0.28652907]
[1743918550067,1.15,592.58,591.99,0.33784354]
[1743918550266,1.15,592.58,592.0,0.28652516]
[1743918551768,1.15,592.58,592.01,0.28651602]
[1743918551964,1.15,592.58,592.0,0.28651602]
[1743918552164,1.15,592.58,592.01,0.28651602]
[1743918552368,1.15,592.58,592.0,0.28651602]
[1743918552668,1.15,592.58,592.01,0.28651602]
[1743918552868,1.15,592.58,592.0,0.28651602]
[1743918553068,1.15,592.58,592.01,0.28651602]
[1743918553268,1.15,592.58,592.0,0.28651602]
[1743918553468,1.15,592.58,592.02,0.28651602]
[1743918553763,1.15,592.58,592.03,0.28651602]
[1743918553972,1.15,592.58,591.99,0.33784354]
[1743918554170,1.15,592.58,592.07,1.26833324]
[1743918554471,1.15,592.58,592.08,0.28652752]
[1743918557170,1.15,592.58,592.09,0.28652752]
[1743918557367,1.15,592.58,592.07,0.28652752]
[1743918557670,1.15,592.58,592.06,1.26833324]
[1743918557671,1.15,592.58,592.08,0.28652752]
[1743918557866,1.15,592.58,592.07,0.28652752]
[1743918558066,1.15,592.58,592.08,0.28652752]
[1743918558271,1.15,592.58,592.07,0.28652752]
[1743918558472,1.15,592.58,592.09,0.28652752]
[1743918558773,1.15,592.58,592.1,0.28652752]
[1743918558977,1.15,592.58,592.07,0.28652752]
[1743918559175,1.15,592.58,592.1,1.26833324]
[1743918559376,1.15,592.58,592.11,0.28646263]
[1743918560078,1.15,592.58,592.1,1.26833324]
[1743918560276,1.15,592.58,592.11,0.28646315]
[1743918561378,1.15,592.58,592.13,1.26833324]
[1743918561574,1.15,592.58,592.14,0.28646315]
[1743918561779,1.15,592.58,592.13,1.26833324]
[1743918561979,1.15,592.58,592.14,0.28646387]
[1743918563080,1.15,592.58,592.12,0.28646387]
[1743918564182,1.15,592.58,592.11,1.26833324]
[1743918564382,1.15,592.58,592.12,0.28646226]
[1743918565285,1.15,592.58,592.04,1.26833324]
[1743918565286,1.15,592.58,592.1,1.26833324]
[1743918565580,1.15,592.58,592.11,0.28646397]
[1743918566983,1.15,592.58,592.11,1.55479721]
[1743918567182,1.15,592.58,592.12,0.28646397]
[1743918569586,1.15,592.58,592.1,0.28646397]
[1743918569783,1.15,592.58,592.11,0.28646397]
[1743918570084,1.15,592.58,592.12,0.28646397]
[1743918570287,1.15,592.58,592.09,1.26833324]
[1743918570479,1.15,592.58,592.1,0.28643196]
[1743918571279,1.15,592.58,592.11,0.28643196]
[1743918571481,1.15,592.58,592.09,0.28643196]
[1743918571782,1.15,592.58,592.1,0.28643196]
[1743918571986,1.15,592.58,592.09,0.28643196]
[1743918572186,1.15,592.58,592.1,0.28643196]
[1743918572389,1.15,592.58,592.09,0.28643196]
[1743918572581,1.15,592.58,592.1,0.28643196]
[1743918572785,1.15,592.58,592.09,0.28643196]
[1743918572982,1.15,592.58,592.1,0.28643196]
[1743918573182,1.15,592.58,592.09,0.28643196]
[1743918573383,1.15,592.58,592.1,0.28643196]
[1743918573587,1.15,592.58,592.09,0.28643196]
[1743918573783,1.15,592.58,592.1,0.28643196]
[1743918573989,1.15,592.58,592.09,0.28643196]
[1743918574189,1.15,592.58,592.11,0.28643196]
[1743918574388,1.15,592.58,592.12,0.28643196]
[1743918574587,1.15,592.58,592.09,0.28643196]
[1743918574788,1.15,592.58,592.1,0.28643196]
[1743918575084,1.15,592.58,592.11,0.28643196]
[1743918575289,1.15,592.58,592.09,0.28643196]
[1743918575683,1.15,592.58,592.07,0.28643196]
[1743918578592,1.15,592.58,592.06,1.26833324]
[1743918578798,1.15,592.58,592.07,0.28635656]
[1743918579192,1.15,592.58,592.0,0.28635656]
[1743918582110,1.15,592.58,591.99,0.33784354]
[1743918582308,1.15,592.58,592.0,0.28636177]
[1743918583698,1.15,592.58,591.99,0.33784354]
[1743918583895,1.15,592.58,592.0,0.28636039]
[1743918584400,1.15,592.58,591.99,0.33784354]
[1743918584597,1.15,592.58,592.0,0.28635797]
[1743918585494,1.15,592.58,591.99,0.33784354]
[1743918585799,1.15,592.58,592.0,0.28635653]
[1743918586698,1.15,592.58,592.03,1.26833324]
[1743918586897,1.15,592.58,592.04,0.28635653]
[1743918588695,1.15,592.58,592.03,1.26833324]
[1743918588900,1.15,592.58,592.04,0.28637924]
[1743918592097,1.15,592.58,592.0,0.28637924]
[1743918592302,1.15,592.58,592.01,0.28636012]
[1743918593904,1.15,592.58,592.01,1.55469336]
[1743918594199,1.15,592.58,592.02,0.28636012]
[1743918595498,1.15,592.58,592.01,1.26833324]
[1743918595699,1.15,592.58,592.02,0.6241152]
[1743918595904,1.15,592.58,592.03,0.62410949]
[1743918596103,1.15,592.58,592.04,0.62410379]
[1743918596305,1.15,592.58,592.05,0.62409808]
[1743918596504,1.15,592.58,592.06,0.62409238]
[1743918596704,1.15,592.58,592.07,0.62408667]
[1743918596904,1.15,592.58,592.08,0.28628878]
[1743918597102,1.15,592.58,592.07,0.33779789]
[1743918597303,1.15,592.58,592.08,0.28628224]
[1743918598706,1.15,592.58,592.14,1.26833324]
[1743918598906,1.15,592.58,592.15,0.28628224]
[1743918601202,1.15,592.58,592.11,0.28628224]
[1743918601406,1.15,592.58,592.12,0.28628224]
[1743918601607,1.15,592.58,592.11,0.28628224]
[1743918601809,1.15,592.58,592.12,0.28623284]
[1743918602008,1.15,592.58,592.11,0.28623284]
[1743918602207,1.15,592.58,592.12,0.28623284]
[1743918602408,1.15,592.58,592.13,0.28623284]
[1743918602609,1.15,592.58,592.1,0.28623284]
[1743918602812,1.15,592.58,592.11,0.28623284]
[1743918603004,1.15,592.58,592.11,0.62400791]
[1743918603206,1.15,592.58,592.12,0.28623284]
[1743918604613,1.15,592.58,592.13,0.33776366]
[1743918604809,1.15,592.58,592.15,1.26833324]
[1743918605008,1.15,592.58,592.16,0.28623284]
[1743918606914,1.15,592.58,592.16,0.62397939]
[1743918607112,1.15,592.58,592.17,0.28623284]
[1743918609014,1.15,592.58,592.16,0.33774655]
[1743918609214,1.15,592.58,592.17,0.28606669]
[1743918610110,1.15,592.58,592.16,0.33774655]
[1743918610321,1.15,592.58,592.17,0.28608064]
[1743918612211,1.15,592.58,592.18,0.33773514]
[1743918612417,1.15,592.58,592.19,0.28608064]
[1743918612618,1.51491679,593.82,592.2,0.33772374]
[1743918612826,0.33681374,593.8,592.21,0.28608064]
[1743918613009,0.30998568,593.79,592.21,0.28608064]
[1743918613213,0.30998568,593.78,592.21,0.28608064]
[1743918613415,0.30998568,593.77,592.22,0.33771233]
[1743918613616,0.3368421,593.75,592.22,0.33771233]
[1743918613818,0.3099867,593.74,592.23,0.28598935]
[1743918614616,0.33685912,593.72,592.24,0.33770093]
[1743918614822,0.3099867,593.71,592.25,0.28598935]
[1743918615013,0.33687614,593.69,592.25,0.28598935]
[1743918615215,0.3099867,593.68,592.25,0.28598935]
[1743918615617,0.33689317,593.66,592.25,0.28598935]
[1743918615811,0.3099867,593.65,592.25,0.28598935]
[1743918616010,0.33691019,593.63,592.25,0.28598935]
[1743918616212,0.3099867,593.62,592.25,0.28598935]
[1743918616614,0.33692154,593.61,592.25,0.28598935]
[1743918616814,0.3099867,593.6,592.25,0.28598935]
[1743918617217,0.33693289,593.59,592.25,0.28598935]
[1743918617618,0.3099867,593.58,592.25,0.28598935]
[1743918618115,0.33694425,593.57,592.25,0.28598935]
[1743918618320,0.3099867,593.56,592.25,0.28598935]
[1743918618517,0.33694425,593.57,592.24,0.33770093]